bitfinex-derivatives/quotes_BTCF0:USTF0_20240830
["timestamp","ask_amount","ask_price","bid_price","bid_amount"]
[1725032717885,1.0,58300.0,58299.0,0.696569]
[1725032718083,1.0,58300.0,58299.0,0.782338]
[1725032718487,1.0,58300.0,58299.0,1.211169]
[1725032718784,1.0,58300.0,58299.0,1.811169]
[1725032718785,0.073119,58300.0,58299.0,1.811169]
[1725032718989,0.073119,58300.0,58299.0,1.896938]
[1725032719191,0.073119,58300.0,58299.0,1.811169]
[1725032719884,0.073119,58300.0,58299.0,1.91381945]
[1725032719885,0.077119,58300.0,58299.0,1.91381945]
[1725032720078,1e-06,58300.0,58299.0,1.91381945]
[1725032720389,1e-06,58300.0,58299.0,1.22805045]
[1725032720584,0.005,58300.0,58299.0,1.14328145]
[1725032720981,0.005,58300.0,58299.0,1.82905045]
[1725032721288,0.005,58300.0,58299.0,1.91481945]
[1725032721700,0.005,58300.0,58299.0,1.31481945]
[1725032721880,0.1697,58319.0,58315.0,0.085745]
[1725032722084,0.1697,58319.0,58302.0,0.00025735]
[1725032722085,0.18606803,58319.0,58316.0,0.3608]
[1725032722282,0.18606803,58319.0,58318.0,0.085741]
[1725032722690,0.3608,58329.0,58318.0,0.7644]
[1725032722985,0.085726,58328.0,58322.0,0.3608]
[1725032723184,0.25,58326.0,58322.0,0.3608]
[1725032723379,0.085733,58323.0,58322.0,0.3608]
[1725032723775,0.600133,58323.0,58322.0,0.3608]
[1725032724075,0.25,58326.0,58322.0,0.3608]
[1725032724280,0.085731,58325.0,58322.0,0.3608]
[1725032724480,0.085732,58324.0,58322.0,0.446534]
[1725032724683,0.17612609,58332.0,58322.0,0.3608]
[1725032724684,0.085733,58323.0,58322.0,0.3608]
[1725032724884,0.25,58331.0,58322.0,0.3608]
[1725032725190,0.085726,58329.0,58327.0,0.3608]
[1725032725385,0.085726,58328.0,58325.0,0.08573]
[1725032725593,0.183948,58332.0,58327.0,0.6108]
[1725032725782,0.183948,58332.0,58329.0,0.3608]
[1725032726086,0.085722,58331.0,58329.0,0.3608]
[1725032727087,0.085722,58331.0,58330.0,0.085723]
[1725032727794,0.085716,58335.0,58329.0,0.3608]
[1725032727977,0.085716,58335.0,58334.0,0.3608]
[1725032728591,0.10237283,58335.0,58334.0,0.3608]
[1725032728789,0.01665683,58335.0,58334.0,0.446517]
[1725032728981,0.413712,58338.0,58334.0,0.3608]
[1725032729182,0.328,58338.0,58337.0,0.085713]
[1725032729491,0.34448155,58338.0,58334.0,0.3608]
[1725032730395,0.335716,58335.0,58330.0,0.00125735]
[1725032730584,0.085723,58330.0,58323.0,0.3608]
[1725032730784,0.085732,58324.0,58323.0,0.3608]
[1725032731478,0.085726,58328.0,58326.0,0.085728]
[1725032731682,0.085726,58328.0,58323.0,0.3608]
[1725032731683,0.00025652,58333.0,58323.0,0.3618]
[1725032731895,0.085732,58325.0,58323.0,0.6118]
[1725032732081,0.085732,58325.0,58323.0,0.9726]
[1725032732482,0.085726,58329.0,58328.0,0.085725]
[1725032732693,0.085722,58331.0,58328.0,0.3608]
[1725032732885,0.085722,58331.0,58330.0,0.085723]
[1725032733092,0.085724,58329.0,58328.0,0.3608]
[1725032733591,0.085724,58329.0,58328.0,0.446526]
[1725032734394,0.01724961,58333.0,58328.0,0.3618]
[1725032734580,0.085724,58330.0,58329.0,0.085723]
[1725032734783,0.085724,58329.0,58328.0,0.3618]
[1725032736091,0.01724961,58333.0,58328.0,0.3618]
[1725032736391,0.00025652,58333.0,58332.0,0.08572]
[1725032737592,0.00025652,58333.0,58332.0,0.17244]
[1725032737897,0.00025652,58333.0,58332.0,1.28672]
[1725032739283,0.00025652,58333.0,58332.0,0.61781859]
[1725032739488,0.00025652,58333.0,58332.0,0.08672]
[1725032741098,1.28597452,58333.0,58332.0,0.001]
[1725032741294,1.30231497,58333.0,58332.0,0.001]
[1725032741484,0.71631497,58333.0,58332.0,0.001]
[1725032741686,0.085727,58327.0,58326.0,0.3608]
[1725032741988,0.085727,58327.0,58326.0,0.446529]
[1725032742298,0.085727,58327.0,58326.0,0.3608]
[1725032742493,0.171454,58327.0,58326.0,0.3608]
[1725032743592,0.085727,58327.0,58326.0,0.3608]
[1725032743791,0.10218927,58327.0,58326.0,0.3608]
[1725032744092,0.10418927,58327.0,58326.0,0.3618]
[1725032744399,0.10418927,58327.0,58314.0,0.25]
[1725032744400,0.50926227,58327.0,58304.0,0.6108]
[1725032744592,0.25,58313.0,58300.0,0.3608]
[1725032744793,0.25,58304.0,58300.0,0.3608]
[1725032744998,0.25,58304.0,58296.0,0.085773]
[1725032745196,0.25,58304.0,58297.0,0.085771]
[1725032745400,0.17595735,58306.0,58296.0,0.25]
[1725032745588,0.17595735,58306.0,58301.0,0.25]
[1725032745789,0.17595735,58306.0,58305.0,0.08576]
[1725032745988,0.42595735,58306.0,58295.0,0.00025735]
[1725032746189,0.08577,58298.0,58295.0,0.00025735]
[1725032746600,0.25,58302.0,58295.0,0.00025735]
[1725032746895,0.085771,58298.0,58295.0,0.00025735]
[1725032747102,0.085764,58303.0,58299.0,0.085768]
[1725032747299,0.01662844,58306.0,58304.0,0.011]
[1725032747488,0.01662844,58306.0,58305.0,0.33576]
[1725032747489,0.00025735,58306.0,58305.0,0.33576]
[1725032747691,0.00025735,58306.0,58305.0,0.69656]
[1725032748098,0.00025735,58306.0,58305.0,1.21108]
[1725032748297,0.00025735,58306.0,58305.0,1.81108]
[1725032748999,0.00525735,58306.0,58305.0,1.86300833]
[1725032749205,0.005,58306.0,58305.0,1.89784]
[1725032749400,0.005,58306.0,58305.0,1.91489739]
[1725032749603,0.005,58306.0,58305.0,1.96610773]
[1725032749905,0.3608,58320.0,58305.0,1.83013739]
[1725032750101,0.3608,58320.0,58306.0,0.05121076]
[1725032750102,0.25,58315.0,58306.0,0.05121076]
[1725032750291,0.3608,58313.0,58307.0,0.00025735]
[1725032750598,0.446549,58313.0,58307.0,0.00025735]
[1725032751004,0.446549,58313.0,58312.0,0.085749]
[1725032751200,0.085749,58313.0,58312.0,0.085749]
[1725032751400,0.00025652,58318.0,58313.0,0.085747]
[1725032751604,0.085743,58317.0,58314.0,0.085745]
[1725032751903,0.00025652,58318.0,58308.0,0.25]
[1725032751904,0.085748,58314.0,58308.0,0.25]
[1725032752102,0.085748,58314.0,58311.0,0.085751]
[1725032752301,0.085749,58313.0,58311.0,0.085751]
[1725032752691,0.25,58315.0,58307.0,0.00025735]
[1725032752902,0.085742,58317.0,58309.0,0.3608]
[1725032753097,0.085742,58317.0,58315.0,0.085745]
[1725032753297,0.085742,58317.0,58316.0,0.085744]
[1725032753497,0.085746,58315.0,58312.0,0.001]
[1725032753697,0.25,58316.0,58312.0,0.001]
[1725032753897,0.085745,58316.0,58314.0,0.085746]
[1725032754505,0.085745,58316.0,58315.0,0.001]
[1725032754802,0.085745,58316.0,58315.0,0.086745]
[1725032755104,0.085745,58316.0,58307.0,0.05146811]
[1725032755105,0.085748,58313.0,58312.0,0.001]
[1725032755303,0.782296,58313.0,58312.0,0.001]
[1725032756204,0.532296,58313.0,58312.0,0.001]
[1725032756398,0.782296,58313.0,58312.0,0.001]
[1725032757099,0.892296,58313.0,58312.0,0.001]
[1725032757399,0.085755,58308.0,58307.0,0.00025735]
[1725032757602,0.696555,58308.0,58307.0,0.00025735]
[1725032758600,0.7190107,58308.0,58307.0,0.00125735]
[1725032758797,0.720555,58308.0,58307.0,0.00125735]
[1725032759110,0.3848,58308.0,58307.0,0.08701435]
[1725032760305,0.3848,58308.0,58307.0,0.00025735]
[1725032760306,0.79231,58308.0,58307.0,0.00025735]
[1725032760503,0.79231,58308.0,58307.0,0.00125735]
[1725032760504,0.81486267,58308.0,58307.0,0.00125735]
[1725032760707,0.720555,58308.0,58307.0,0.00125735]
[1725032761010,0.3848,58308.0,58307.0,0.17277135]
[1725032761308,0.3818,58308.0,58307.0,0.08801435]
[1725032761614,0.106755,58308.0,58307.0,0.00225735]
[1725032762004,1.4015479,58308.0,58307.0,0.00225735]
[1725032762203,1.4015479,58308.0,58283.0,0.42870445]
[1725032762204,0.085791,58284.0,58283.0,0.3608]
[1725032762403,0.085791,58284.0,58279.0,0.00088]
[1725032762404,0.085797,58280.0,58279.0,0.00088]
[1725032762611,0.085799,58279.0,58267.0,0.3608]
[1725032762803,0.6108,58274.0,58272.0,0.085807]
[1725032763003,0.6108,58274.0,58272.0,0.085808]
[1725032763210,0.085813,58269.0,58267.0,0.00025735]
[1725032763514,0.085813,58269.0,58268.0,0.085814]
[1725032763515,0.3608,58269.0,58268.0,0.085814]
[1725032764101,0.25,58273.0,58272.0,0.085808]
[1725032764504,0.37745518,58274.0,58272.0,0.085808]
[1725032765216,0.261,58273.0,58272.0,0.001]
[1725032765405,0.346807,58273.0,58272.0,0.001]
[1725032765606,0.360807,58273.0,58272.0,0.002]
[1725032766408,0.360807,58273.0,58267.0,0.00025735]
[1725032766409,0.085814,58268.0,58267.0,0.00025735]
[1725032766615,0.696614,58268.0,58267.0,0.00025735]
[1725032766814,0.08582,58265.0,58257.0,0.08583]
[1725032767012,1.72568,58268.0,58257.0,0.08583]
[1725032767013,0.25,58260.0,58257.0,0.08583]
[1725032767311,0.25,58260.0,58252.0,0.085838]
[1725032767519,0.25,58254.0,58251.0,0.3608]
[1725032767718,0.25,58254.0,58243.0,0.085851]
[1725032767919,0.6108,58244.0,58243.0,0.00025735]
[1725032768107,0.69665,58244.0,58243.0,0.00025735]
[1725032768312,1.48668,58244.0,58228.0,0.3608]
[1725032768609,0.25,58239.0,58236.0,0.085861]
[1725032768812,0.242,58239.0,58236.0,0.085861]
[1725032769116,0.242,58239.0,58228.0,0.37711734]
[1725032769316,0.4244,58243.0,58240.0,0.085854]
[1725032769912,0.4244,58243.0,58235.0,0.3608]
[1725032770220,0.3608,58244.0,58243.0,0.085851]
[1725032770816,0.3618,58244.0,58243.0,0.085851]
[1725032771117,0.002,58244.0,58243.0,0.085851]
[1725032771322,1e-06,58244.0,58243.0,1.811731]
[1725032771629,5.7e-07,58247.0,58246.0,0.257541]
[1725032771810,5.7e-07,58247.0,58246.0,0.532494]
[1725032772011,5.7e-07,58247.0,58246.0,1.647534]
[1725032772525,5.7e-07,58247.0,58246.0,1.733381]
[1725032772835,0.4178,58275.0,58267.0,0.085815]
[1725032773122,0.4178,58275.0,58270.0,0.085811]
[1725032773123,0.25,58271.0,58270.0,0.085811]
[1725032773320,0.25,58271.0,58266.0,0.3608]
[1725032773523,0.25,58271.0,58270.0,0.085811]
[1725032774229,0.00025757,58274.0,58273.0,0.085807]
[1725032775513,0.01125757,58274.0,58273.0,0.085807]
[1725032775918,0.01125757,58274.0,58273.0,0.08570524]
[1725032776533,5.7e-07,58274.0,58273.0,1.28631224]
[1725032776722,5.7e-07,58274.0,58273.0,1.29471375]
[1725032776918,5.7e-07,58274.0,58273.0,1.59240075]
[1725032777821,1.4e-07,58279.0,58278.0,0.171598]
[1725032778127,1.4e-07,58279.0,58278.0,1.468197]
[1725032778322,1.4e-07,58279.0,58278.0,1.982957]
[1725032779622,0.3608,58297.0,58296.0,0.085773]
[1725032779816,0.25,58308.0,58306.0,0.085758]
[1725032780017,0.25,58308.0,58307.0,0.085757]
[1725032780425,0.3608,58311.0,58309.0,0.085754]
[1725032780622,0.18787965,58310.0,58309.0,0.085754]
[1725032780818,0.1714,58310.0,58309.0,0.085754]
[1725032781429,0.00025735,58315.0,58314.0,0.085746]
[1725032782125,0.20024731,58318.0,58317.0,0.085742]
[1725032783127,0.21680355,58318.0,58317.0,0.085742]
[1725032783619,0.46680355,58318.0,58317.0,0.085742]
[1725032784218,0.21680355,58318.0,58317.0,0.085742]
[1725032784420,0.00025587,58323.0,58322.0,0.085735]
[1725032785625,0.37505587,58323.0,58322.0,0.001]
[1725032785823,0.46078887,58323.0,58322.0,0.001]
[1725032786538,1.49814994,58323.0,58317.0,0.00125735]
[1725032786733,0.696541,58318.0,58317.0,0.00125735]
[1725032786927,0.696541,58318.0,58305.0,0.08576]
[1725032786928,0.085752,58310.0,58305.0,0.08576]
[1725032787237,0.085752,58310.0,58306.0,0.085757]
[1725032787429,0.25,58316.0,58313.0,0.085747]
[1725032787626,0.085746,58314.0,58313.0,0.085747]
[1725032787938,0.25,58316.0,58305.0,0.01687464]
[1725032787939,0.085752,58310.0,58308.0,0.00025735]
[1725032788230,0.085754,58309.0,58308.0,0.00025735]
[1725032789244,0.085754,58309.0,58308.0,0.08601235]
[1725032789537,0.085754,58309.0,58308.0,0.00025735]
[1725032789750,0.109754,58309.0,58308.0,0.00225735]
[1725032789936,0.12665034,58309.0,58308.0,0.00225735]
[1725032790530,0.57320434,58309.0,58308.0,0.00225735]
[1725032790734,1.60197034,58309.0,58288.0,0.085783]
[1725032790934,1.60197034,58309.0,58301.0,0.3608]
[1725032790935,0.40169634,58309.0,58301.0,0.3608]
[1725032791139,0.085755,58308.0,58301.0,0.3608]
[1725032791539,0.085755,58308.0,58306.0,0.085757]
[1725032791735,0.085755,58308.0,58301.0,0.36105735]
[1725032792043,0.085757,58307.0,58306.0,0.085758]
[1725032792735,0.085757,58307.0,58306.0,0.087758]
[1725032793543,0.022,58308.0,58307.0,0.085757]
[1725032794340,0.008,58308.0,58307.0,0.171514]
[1725032794538,0.008,58308.0,58307.0,0.085757]
[1725032794733,0.093755,58308.0,58307.0,0.085757]
[1725032794939,0.085755,58308.0,58307.0,0.085757]
[1725032795143,0.085755,58308.0,58302.0,0.01710778]
[1725032795144,0.25,58309.0,58308.0,0.085755]
[1725032795340,0.014,58308.0,58307.0,0.085757]
[1725032795845,0.024,58308.0,58307.0,0.086757]
[1725032796767,0.024,58308.0,58307.0,0.001]
[1725032797049,0.014,58308.0,58307.0,0.085757]
[1725032797353,0.085755,58308.0,58307.0,0.085757]
[1725032797649,0.025,58309.0,58308.0,0.085755]
[1725032797650,0.110755,58309.0,58308.0,0.085755]
[1725032798239,0.096755,58309.0,58308.0,0.085755]
[1725032798739,0.085755,58309.0,58308.0,0.085755]
[1725032798936,0.35273511,58313.0,58312.0,0.085749]
[1725032799344,0.26698611,58313.0,58312.0,0.085749]
[1725032800337,0.35273411,58313.0,58312.0,0.085749]
[1725032800533,0.01698611,58313.0,58312.0,0.085749]
[1725032800738,0.01425735,58313.0,58312.0,0.085749]
[1725032801947,0.01425735,58313.0,58312.0,0.171498]
[1725032802145,0.02825735,58313.0,58312.0,0.086749]
[1725032802740,1.26273735,58313.0,58301.0,0.00121735]
[1725032803039,1.26273735,58313.0,58301.0,0.00025735]
[1725032803040,0.696564,58302.0,58301.0,0.00025735]
[1725032803239,0.782328,58302.0,58301.0,0.00025735]
[1725032803550,0.335764,58302.0,58301.0,0.00025735]
[1725032803944,0.335764,58302.0,58301.0,0.08602335]
[1725032804152,0.08521429,58306.0,58301.0,0.00025735]
[1725032804340,0.696552,58310.0,58301.0,0.00025735]
[1725032804341,0.3608,58310.0,58309.0,0.085754]
[1725032804541,0.085752,58310.0,58309.0,0.085754]
[1725032805143,0.10210569,58310.0,58309.0,0.085754]
[1725032805644,0.11010569,58310.0,58309.0,0.085754]
[1725032806058,0.11210569,58310.0,58309.0,0.085754]
[1725032806242,0.11156798,58310.0,58309.0,0.085754]
[1725032806439,0.09521429,58310.0,58309.0,0.446554]
[1725032806642,0.008,58310.0,58309.0,0.446554]
[1725032806938,0.01,58310.0,58309.0,0.446554]
[1725032807138,0.002,58310.0,58309.0,0.446554]
[1725032807345,0.08521429,58312.0,58311.0,0.085751]
[1725032807553,0.08545628,58319.0,58313.0,0.085748]
[1725032807746,0.08545628,58320.0,58318.0,0.3608]
[1725032807942,0.08545628,58321.0,58318.0,0.3608]
[1725032808453,0.08545628,58322.0,58321.0,0.085736]
[1725032809543,0.08545628,58322.0,58321.0,0.171472]
[1725032809849,0.08545628,58324.0,58323.0,0.085733]
[1725032810055,0.08545628,58324.0,58323.0,0.446533]
[1725032810348,0.00025735,58325.0,58324.0,0.085732]
[1725032811452,0.01425735,58325.0,58324.0,0.086732]
[1725032813042,0.02625735,58325.0,58324.0,0.087732]
[1725032813756,0.02425735,58325.0,58324.0,0.087732]
[1725032815047,0.28117363,58325.0,58324.0,0.002]
[1725032815250,0.10998735,58325.0,58324.0,0.002]
[1725032815453,0.02425735,58325.0,58324.0,0.087732]
[1725032816044,0.04128039,58325.0,58324.0,0.087732]
[1725032816451,0.04128039,58325.0,58324.0,0.002]
[1725032816452,0.21239057,58325.0,58324.0,0.002]
[1725032816657,0.21235065,58325.0,58324.0,0.002]
[1725032817153,0.12701039,58325.0,58324.0,0.002]
[1725032817455,0.12701039,58325.0,58324.0,0.00099852]
[1725032818154,0.02425735,58325.0,58324.0,0.00099852]
[1725032818558,0.02425735,58325.0,58324.0,0.08673052]
[1725032819553,0.10998735,58325.0,58324.0,0.00099852]
[1725032819756,0.19571735,58325.0,58324.0,0.00099852]
[1725032819958,0.19571735,58325.0,58317.0,0.01664074]
[1725032819959,1.51941735,58325.0,58317.0,0.01664074]
[1725032820255,1.51941735,58325.0,58314.0,0.00025735]
[1725032820256,0.085745,58315.0,58314.0,0.00025735]
[1725032820457,0.085745,58315.0,58314.0,0.08600335]
[1725032820656,0.085745,58315.0,58314.0,0.00025735]
[1725032821165,0.17149,58315.0,58314.0,0.00025735]
[1725032822057,0.085747,58314.0,58299.0,0.446568]
[1725032822362,0.085747,58314.0,58297.0,0.3608]
[1725032822363,0.085762,58304.0,58297.0,0.3608]
[1725032822554,0.085762,58304.0,58303.0,0.3608]
[1725032822966,0.085757,58307.0,58305.0,0.085759]
[1725032823267,0.085758,58306.0,58305.0,0.085759]
[1725032824064,0.00025735,58309.0,58305.0,1.36452]
[1725032824268,0.00025735,58309.0,58308.0,0.085755]
[1725032824465,0.00025735,58309.0,58308.0,0.600275]
[1725032824656,0.00025735,58309.0,58308.0,1.200275]
[1725032824858,0.00025735,58309.0,58308.0,1.28603]
[1725032825057,0.005,58315.0,58314.0,0.085746]
[1725032825258,0.005,58315.0,58314.0,0.696546]
[1725032825463,0.17114464,58324.0,58319.0,0.085739]
[1725032825764,0.17114464,58324.0,58322.0,0.085734]
[1725032825765,0.18781927,58324.0,58322.0,0.085734]
[1725032826160,0.08541264,58324.0,58323.0,0.085733]
[1725032826367,0.08541264,58324.0,58321.0,0.3608]
[1725032826368,0.3608,58326.0,58325.0,0.08573]
[1725032827063,0.01682822,58327.0,58326.0,0.085729]
[1725032827263,0.08598335,58329.0,58326.0,0.085729]
[1725032827475,0.18781686,58329.0,58322.0,0.001]
[1725032827769,0.011,58326.0,58325.0,0.001]
[1725032828372,0.096729,58326.0,58325.0,0.001]
[1725032828761,0.18214164,58326.0,58325.0,0.001]
[1725032828963,0.096729,58326.0,58325.0,0.001]
[1725032829162,1.571889,58326.0,58325.0,0.001]
[1725032829361,0.985889,58326.0,58325.0,0.001]
[1725032829669,0.085741,58318.0,58317.0,0.00025735]
[1725032829869,0.42115415,58318.0,58317.0,0.00025735]
[1725032830069,0.085741,58318.0,58317.0,0.08599935]
[1725032830363,0.085736,58322.0,58321.0,0.085736]
[1725032831068,0.08574,58319.0,58318.0,0.085739]
[1725032831370,0.25,58323.0,58320.0,0.085737]
[1725032831565,0.091735,58322.0,58321.0,0.001]
[1725032831767,0.341735,58322.0,58321.0,0.001]
[1725032831967,0.353735,58322.0,58321.0,0.001]
[1725032833163,0.43947,58322.0,58321.0,0.001]
[1725032833369,1.56387,58322.0,58321.0,0.001]
[1725032833670,0.171482,58318.0,58317.0,0.00025735]
[1725032833970,0.45460221,58318.0,58317.0,0.00025735]
[1725032834161,1.67904221,58318.0,58317.0,0.00025735]
[1725032834565,0.085773,58298.0,58297.0,0.3608]
[1725032834770,0.085773,58298.0,58288.0,0.0086]
[1725032834771,0.08578,58291.0,58285.0,0.3608]
[1725032835164,0.085779,58293.0,58291.0,0.08578]
[1725032835372,0.085779,58293.0,58292.0,0.085779]
[1725032835577,0.085779,58293.0,58290.0,0.3608]
[1725032835578,0.10260466,58295.0,58290.0,0.3608]
[1725032835863,0.1698,58297.0,58290.0,0.3608]
[1725032835864,0.1698,58297.0,58291.0,0.3608]
[1725032836066,0.00125735,58298.0,58296.0,0.446573]
[1725032836268,0.00125735,58298.0,58297.0,0.085771]
[1725032838167,0.00125735,58298.0,58296.0,0.3608]
[1725032838168,0.171542,58297.0,58296.0,0.3608]
[1725032838564,0.085778,58293.0,58290.0,0.085782]
[1725032838769,0.25,58291.0,58290.0,0.085782]
[1725032839169,0.25,58295.0,58290.0,0.3608]
[1725032839473,0.085777,58294.0,58290.0,0.3608]
[1725032839669,0.02308164,58297.0,58296.0,0.085773]
[1725032839873,0.003,58297.0,58296.0,0.446573]
[1725032840878,0.00625735,58298.0,58297.0,0.085771]
[1725032841073,0.00025735,58298.0,58297.0,0.085771]
[1725032842188,0.01125735,58298.0,58297.0,0.085771]
[1725032842975,0.01425735,58298.0,58297.0,0.085771]
[1725032843474,0.01425735,58298.0,58292.0,0.0200414]
[1725032843475,0.085773,58296.0,58290.0,0.36168]
[1725032843678,0.25,58292.0,58290.0,0.446581]
[1725032844573,0.00325735,58298.0,58297.0,0.085771]
[1725032845271,0.00025735,58298.0,58297.0,0.085771]
[1725032845474,0.00025735,58298.0,58297.0,0.532342]
[1725032846073,0.00025735,58298.0,58297.0,0.446571]
[1725032846276,0.00025735,58298.0,58297.0,0.532342]
[1725032846470,0.00025735,58298.0,58297.0,0.446571]
[1725032846774,0.00025735,58298.0,58297.0,2.054542]
[1725032847080,0.00025735,58298.0,58297.0,1.718771]
[1725032847276,0.00025735,58298.0,58297.0,0.689942]
[1725032847277,0.00425735,58298.0,58297.0,0.689942]
[1725032847469,0.00425735,58298.0,58297.0,0.690942]
[1725032847773,0.00425735,58298.0,58297.0,0.447571]
[1725032847972,0.00425735,58298.0,58297.0,0.086771]
[1725032848381,0.00425735,58298.0,58297.0,0.172542]
[1725032848565,0.00425735,58298.0,58297.0,1.537142]
[1725032849382,0.00425735,58298.0,58297.0,0.687142]
[1725032849565,0.00425735,58298.0,58297.0,0.172542]
[1725032849981,0.00525735,58298.0,58297.0,0.086771]
[1725032850476,0.00525735,58298.0,58297.0,0.172542]
[1725032850674,0.00525735,58298.0,58297.0,0.085771]
[1725032850876,0.00425735,58298.0,58297.0,0.172542]
[1725032851181,0.0853133,58309.0,58301.0,0.085765]
[1725032851371,0.0853133,58310.0,58308.0,0.3608]
[1725032851574,0.0853133,58311.0,58310.0,0.085752]
[1725032851869,0.08535111,58311.0,58307.0,0.085755]
[1725032852079,0.171522,58304.0,58303.0,0.00025735]
[1725032852265,0.085771,58297.0,58290.0,0.3608]
[1725032852467,0.08578,58291.0,58290.0,0.3608]
[1725032852776,0.085785,58288.0,58287.0,0.085786]
[1725032853175,0.085785,58288.0,58280.0,0.3608]
[1725032853176,0.085782,58290.0,58280.0,0.3608]
[1725032853370,0.25,58281.0,58276.0,0.3608]
[1725032853571,0.3608,58280.0,58279.0,0.00025735]
[1725032853781,0.5189,58280.0,58279.0,0.00025735]
[1725032854086,1.119457,58280.0,58279.0,0.00025735]
[1725032854679,0.854697,58280.0,58279.0,0.00025735]
[1725032854980,0.854697,58280.0,58279.0,0.44785535]
[1725032854981,0.02185995,58280.0,58279.0,0.44785535]
[1725032855470,0.001,58280.0,58279.0,0.96261535]
[1725032856976,0.001,58281.0,58280.0,0.085797]
[1725032857180,0.00025735,58285.0,58279.0,0.87581735]
[1725032857181,0.00025735,58285.0,58284.0,0.085791]
[1725032857373,0.00025735,58285.0,58284.0,0.446591]
[1725032858382,0.00125735,58285.0,58284.0,0.447591]
[1725032858773,0.00025735,58285.0,58284.0,0.446591]
[1725032859077,0.00125735,58285.0,58284.0,0.447591]
[1725032860384,0.00225735,58285.0,58284.0,0.086791]
[1725032860571,0.00125735,58285.0,58284.0,0.085791]
[1725032860777,0.00225735,58285.0,58284.0,0.086791]
[1725032860985,0.33804635,58285.0,58284.0,0.001]
[1725032861188,1.45176635,58285.0,58284.0,0.001]
[1725032861383,1.45276635,58285.0,58284.0,0.001]
[1725032861679,0.085797,58280.0,58279.0,0.00025735]
[1725032861892,0.421594,58280.0,58279.0,0.00025735]
[1725032862073,0.936354,58280.0,58279.0,0.00025735]
[1725032862485,1.707254,58280.0,58279.0,0.00025735]
[1725032862684,1.707254,58280.0,58268.0,0.3608]
[1725032862685,1.63812569,58280.0,58268.0,0.446614]
[1725032862879,0.085804,58276.0,58268.0,0.3608]
[1725032863386,0.3618,58277.0,58276.0,0.085802]
[1725032863689,0.00225735,58285.0,58284.0,0.085791]
[1725032863876,0.00225735,58285.0,58284.0,0.446591]
[1725032864295,0.02785515,58285.0,58284.0,0.446591]
[1725032864592,0.00725735,58285.0,58284.0,0.446591]
[1725032864979,0.00625735,58285.0,58284.0,0.446591]
[1725032865185,0.00625735,58285.0,58284.0,0.447591]
[1725032865578,0.00025735,58285.0,58284.0,0.447591]
[1725032865888,0.00125735,58285.0,58284.0,0.446591]
[1725032866085,0.02407727,58285.0,58284.0,0.446591]
[1725032866292,0.02407727,58285.0,58269.0,0.085812]
[1725032866293,1.36797735,58285.0,58274.0,0.085805]
[1725032866590,0.25,58275.0,58274.0,0.085805]
[1725032866779,0.3608,58277.0,58274.0,0.085805]
[1725032866973,0.25,58275.0,58268.0,0.01995222]
[1725032867178,0.25,58275.0,58271.0,0.08606635]
[1725032867581,0.085808,58272.0,58271.0,0.08606635]
[1725032868382,0.085808,58272.0,58271.0,0.00425735]
[1725032869085,0.085808,58272.0,58263.0,0.3608]
[1725032869086,0.085818,58266.0,58263.0,0.3608]
[1725032869289,0.25,58266.0,58258.0,0.3608]
[1725032869494,0.25,58266.0,58265.0,0.085819]
[1725032869987,0.00866714,58270.0,58267.0,0.085815]
[1725032870195,0.002,58272.0,58268.0,0.3608]
[1725032870487,0.00025735,58274.0,58273.0,0.171614]
[1725032870878,0.00025735,58274.0,58273.0,1.286414]
[1725032871491,0.00025735,58274.0,58273.0,0.895934]
[1725032871695,0.00025735,58274.0,58273.0,0.981741]
[1725032871884,0.1762,58289.0,58288.0,0.085785]
[1725032872493,0.1762,58289.0,58286.0,0.3608]
[1725032872494,0.02026787,58289.0,58286.0,0.3608]
[1725032872696,0.25,58293.0,58290.0,0.085782]
[1725032873789,0.25,58293.0,58291.0,0.08578]
[1725032873984,0.25,58293.0,58286.0,0.36105735]
[1725032873985,0.085782,58290.0,58288.0,0.085784]
[1725032874187,0.251,58289.0,58286.0,0.36105735]
[1725032874393,0.085786,58287.0,58286.0,0.36105735]
[1725032874890,0.085786,58287.0,58286.0,0.36905735]
[1725032875287,0.085786,58287.0,58286.0,0.36105735]
[1725032875489,0.085786,58287.0,58286.0,0.36205735]
[1725032875887,0.095786,58287.0,58286.0,0.36205735]
[1725032876188,0.097786,58287.0,58286.0,0.36105735]
[1725032876385,0.012,58287.0,58286.0,0.44684535]
[1725032877001,0.012,58287.0,58286.0,0.53263335]
[1725032877291,0.012,58287.0,58286.0,0.89343335]
[1725032879295,0.012,58287.0,58286.0,0.91348849]
[1725032880300,0.012,58287.0,58286.0,0.46690049]
[1725032880500,0.012,58287.0,58286.0,0.44684535]
[1725032880701,0.347786,58287.0,58286.0,0.36105735]
[1725032881296,1.909052,58287.0,58286.0,0.00025735]
[1725032881598,1.823266,58287.0,58286.0,0.00025735]
[1725032881792,1.979052,58287.0,58286.0,0.00025735]
[1725032881994,1.909052,58287.0,58286.0,0.00025735]
[1725032882596,1.92962202,58287.0,58286.0,0.00025735]
[1725032882804,0.88303602,58287.0,58286.0,0.00025735]
[1725032883102,0.36835602,58287.0,58286.0,0.00025735]
[1725032883303,0.36835602,58287.0,58286.0,0.08604535]
[1725032883496,0.012,58287.0,58286.0,0.08604535]
[1725032884603,0.012,58287.0,58286.0,0.10636884]
[1725032884804,0.012,58287.0,58286.0,0.19215684]
[1725032885003,0.012,58287.0,58286.0,0.27794484]
[1725032885403,0.00025735,58297.0,58296.0,0.171546]
[1725032885594,0.00025735,58297.0,58296.0,0.446573]
[1725032887394,0.01425735,58297.0,58296.0,0.447573]
[1725032887897,0.02725735,58297.0,58296.0,0.448573]
[1725032888094,0.02725735,58297.0,58296.0,0.698573]
[1725032888395,0.00025735,58297.0,58296.0,0.71992408]
[1725032888601,0.00325735,58297.0,58296.0,0.71992408]